[Event "Titled Tuesday Blitz May 30 Late 2023"]
[White "Paravyan, David"]
[Black "Rastbod, Ali"]
[WhiteFideId "4194985"]
[BlackFideId "12567477"]
[WhiteElo "2563"]
[BlackElo "2274"]
[Result "0-1"]
[Round "09"]
[TimeControl "180+2"]
[Date "2023.05.31"]
[WhiteClock "0:00:01"]
[BlackClock "0:00:05"]

1. d4 {[%clk 0:02:59]}  Nf6 {[%clk 0:02:56]} 2. c4 {[%clk 0:02:59]}  e6 {[%clk 0:02:56]} 3. Nc3 {[%clk 0:02:56]}  Bb4 {[%clk 0:02:56]} 4. e3 {[%clk 0:02:55]}  O-O {[%clk 0:02:56]} 5. Bd3 {[%clk 0:02:54]}  d5 {[%clk 0:02:56]} 6. Nf3 {[%clk 0:02:53]}  dxc4 {[%clk 0:02:56]} 7. Bxc4 {[%clk 0:02:54]}  c5 {[%clk 0:02:57]} 8. O-O {[%clk 0:02:54]}  cxd4 {[%clk 0:02:58]} 9. exd4 {[%clk 0:02:55]}  b6 {[%clk 0:02:58]} 10. Bg5 {[%clk 0:02:53]}  Bb7 {[%clk 0:02:58]} 11. Qe2 {[%clk 0:02:53]}  Bxc3 {[%clk 0:02:49]} 12. bxc3 {[%clk 0:02:53]}  Nbd7 {[%clk 0:02:49]} 13. Rfc1 {[%clk 0:02:53]}  Qc7 {[%clk 0:02:49]} 14. Bd3 {[%clk 0:02:50]}  h6 {[%clk 0:02:49]} 15. Bh4 {[%clk 0:02:50]}  Nh5 {[%clk 0:02:49]} 16. Qe3 {[%clk 0:02:45]}  Rac8 {[%clk 0:02:25]} 17. a4 {[%clk 0:02:44]}  Rfe8 {[%clk 0:02:18]} 18. Bb5 {[%clk 0:02:30]}  Bc6 {[%clk 0:01:54]} 19. c4 {[%clk 0:02:29]}  Qb7 {[%clk 0:01:46]} 20. Rab1 {[%clk 0:01:58]}  Nhf6 {[%clk 0:01:24]} 21. Re1 {[%clk 0:01:24]}  a6 {[%clk 0:01:21]} 22. Bxc6 {[%clk 0:01:21]}  Qxc6 {[%clk 0:01:22]} 23. Bxf6 {[%clk 0:01:14]}  Nxf6 {[%clk 0:01:18]} 24. Ne5 {[%clk 0:01:13]}  Qxa4 {[%clk 0:01:09]} 25. Ra1 {[%clk 0:01:12]}  Qc2 {[%clk 0:00:37]} 26. Rxa6 {[%clk 0:01:07]}  Qb2 {[%clk 0:00:30]} 27. h3 {[%clk 0:01:01]}  Red8 {[%clk 0:00:29]} 28. Nxf7 {[%clk 0:00:26]}  Kxf7 {[%clk 0:00:25]} 29. Ra7+ {[%clk 0:00:26]}  Kg8 {[%clk 0:00:22]} 30. Qxe6+ {[%clk 0:00:24]}  Kh8 {[%clk 0:00:21]} 31. Qf7 {[%clk 0:00:11]}  Rg8 {[%clk 0:00:18]} 32. d5 {[%clk 0:00:08]}  Rcf8 {[%clk 0:00:15]} 33. Qg6 {[%clk 0:00:06]}  Ng4 {[%clk 0:00:09]} 34. Rf1 {[%clk 0:00:02]}  Nxf2 {[%clk 0:00:08]} 35. Qe6 {[%clk 0:00:01]}  Qd4 {[%clk 0:00:05]} 36. Kh2 {[%clk 0:00:01]}  Qxc4 {[%clk 0:00:05]} 0-1


[Site "https://www.chess.com"]

[Event "Titled Tuesday Blitz May 30 Late 2023"]
[White "Hambleton, Aman"]
[Black "Adewumi, Tanitoluwa"]
[WhiteFideId "2606577"]
[BlackFideId "30966396"]
[WhiteElo "2511"]
[BlackElo "2594"]
[Result "0-1"]
[Round "09"]
[TimeControl "180+2"]
[Date "2023.05.31"]
[WhiteClock "0:00:01"]
[BlackClock "0:00:02"]

1. c4 {[%clk 0:03:00]}  e5 {[%clk 0:02:58]} 2. g3 {[%clk 0:03:00]}  Nf6 {[%clk 0:02:56]} 3. Bg2 {[%clk 0:03:00]}  Nc6 {[%clk 0:02:57]} 4. Nc3 {[%clk 0:02:57]}  g6 {[%clk 0:02:57]} 5. e4 {[%clk 0:02:19]}  d6 {[%clk 0:02:55]} 6. Nge2 {[%clk 0:02:17]}  h5 {[%clk 0:02:54]} 7. h3 {[%clk 0:02:16]}  Bh6 {[%clk 0:02:51]} 8. d4 {[%clk 0:01:41]}  Bxc1 {[%clk 0:02:47]} 9. Rxc1 {[%clk 0:01:42]}  h4 {[%clk 0:02:31]} 10. g4 {[%clk 0:01:36]}  Bd7 {[%clk 0:02:02]} 11. f4 {[%clk 0:01:31]}  exf4 {[%clk 0:01:58]} 12. Nxf4 {[%clk 0:01:31]}  Nh7 {[%clk 0:01:43]} 13. O-O {[%clk 0:01:25]}  O-O {[%clk 0:01:24]} 14. Nfd5 {[%clk 0:00:51]}  Qg5 {[%clk 0:01:17]} 15. Nxc7 {[%clk 0:00:31]}  Qe3+ {[%clk 0:01:13]} 16. Kh1 {[%clk 0:00:30]}  Rad8 {[%clk 0:01:08]} 17. N7b5 {[%clk 0:00:18]}  a6 {[%clk 0:00:56]} 18. Nd5 {[%clk 0:00:18]}  Qg5 {[%clk 0:00:42]} 19. Nbc3 {[%clk 0:00:06]}  Kg7 {[%clk 0:00:26]} 20. Rc2 {[%clk 0:00:05]}  f5 {[%clk 0:00:20]} 21. gxf5 {[%clk 0:00:05]}  gxf5 {[%clk 0:00:19]} 22. Rcf2 {[%clk 0:00:04]}  Nf6 {[%clk 0:00:13]} 23. exf5 {[%clk 0:00:04]}  Nh5 {[%clk 0:00:12]} 24. Rg1 {[%clk 0:00:02]}  Ng3+ {[%clk 0:00:12]} 25. Kh2 {[%clk 0:00:02]}  Rxf5 {[%clk 0:00:11]} 26. Rxf5 {[%clk 0:00:01]}  Bxf5 {[%clk 0:00:12]} 27. Bf3 {[%clk 0:00:01]}  Re8 {[%clk 0:00:09]} 28. Rg2 {[%clk 0:00:01]}  Kh8 {[%clk 0:00:06]} 29. Ne2 {[%clk 0:00:02]}  Ne7 {[%clk 0:00:01]} 30. Nxg3 {[%clk 0:00:02]}  hxg3+ {[%clk 0:00:01]} 31. Rxg3 {[%clk 0:00:03]}  Qh4 {[%clk 0:00:02]} 32. Qg1 {[%clk 0:00:02]}  Nxd5 {[%clk 0:00:02]} 33. Bxd5 {[%clk 0:00:01]}  Qf4 {[%clk 0:00:02]} 34. Bg2 {[%clk 0:00:01]}  Re3 {[%clk 0:00:02]} 0-1


[Site "https://www.chess.com"]

[Event "Titled Tuesday Blitz May 30 Late 2023"]
[White "Kavutskiy, Konstantin"]
[Black "Mekhitarian, Krikor Sevag"]
[WhiteFideId "2026384"]
[BlackFideId "2107660"]
[WhiteElo "2323"]
[BlackElo "2604"]
[Result "1/2-1/2"]
[Round "09"]
[TimeControl "180+2"]
[Date "2023.05.31"]
[WhiteClock "0:00:23"]
[BlackClock "0:00:32"]

1. d4 {[%clk 0:03:00]}  d5 {[%clk 0:02:58]} 2. c4 {[%clk 0:03:00]}  e6 {[%clk 0:02:58]} 3. Nf3 {[%clk 0:02:59]}  c5 {[%clk 0:02:52]} 4. cxd5 {[%clk 0:02:59]}  exd5 {[%clk 0:02:53]} 5. g3 {[%clk 0:02:58]}  Nc6 {[%clk 0:02:46]} 6. Bg2 {[%clk 0:02:58]}  c4 {[%clk 0:02:46]} 7. O-O {[%clk 0:02:54]}  Nf6 {[%clk 0:02:47]} 8. b3 {[%clk 0:02:54]}  cxb3 {[%clk 0:02:27]} 9. axb3 {[%clk 0:02:50]}  Be7 {[%clk 0:02:26]} 10. Ba3 {[%clk 0:02:45]}  O-O {[%clk 0:02:24]} 11. Bxe7 {[%clk 0:02:42]}  Qxe7 {[%clk 0:02:25]} 12. Nc3 {[%clk 0:02:42]}  Rd8 {[%clk 0:02:23]} 13. e3 {[%clk 0:02:37]}  a5 {[%clk 0:02:17]} 14. Na4 {[%clk 0:02:22]}  Rb8 {[%clk 0:02:12]} 15. Rc1 {[%clk 0:02:20]}  Bg4 {[%clk 0:02:06]} 16. h3 {[%clk 0:02:18]}  Bh5 {[%clk 0:02:05]} 17. Qc2 {[%clk 0:02:13]}  Ne4 {[%clk 0:01:55]} 18. Nc5 {[%clk 0:01:54]}  Nb4 {[%clk 0:01:51]} 19. Qe2 {[%clk 0:01:33]}  b6 {[%clk 0:01:32]} 20. Nd3 {[%clk 0:01:27]}  Rbc8 {[%clk 0:01:25]} 21. Nf4 {[%clk 0:01:12]}  Bxf3 {[%clk 0:01:20]} 22. Bxf3 {[%clk 0:01:10]}  g6 {[%clk 0:01:14]} 23. Kg2 {[%clk 0:01:07]}  Qd6 {[%clk 0:01:03]} 24. h4 {[%clk 0:01:00]}  Kg7 {[%clk 0:01:01]} 25. Bxe4 {[%clk 0:00:55]}  dxe4 {[%clk 0:01:01]} 26. Qg4 {[%clk 0:00:55]}  f5 {[%clk 0:00:52]} 27. Qg5 {[%clk 0:00:32]}  h6 {[%clk 0:00:50]} 28. Nh5+ {[%clk 0:00:30]}  Kh7 {[%clk 0:00:37]} 29. Nf6+ {[%clk 0:00:30]}  Kg7 {[%clk 0:00:37]} 30. Nh5+ {[%clk 0:00:23]}  Kh7 {[%clk 0:00:32]} 31. Nf6+ {[%clk 0:00:22]}  Kg7 {[%clk 0:00:32]} 32. Nh5+ {[%clk 0:00:23]} 1/2-1/2


[Site "https://www.chess.com"]

[Event "Titled Tuesday Blitz May 30 Late 2023"]
[White "ElDivis"]
[Black "Matinian, Nikita"]
[BlackFideId "24129100"]
[WhiteElo "2560"]
[BlackElo "2422"]
[Result "0-1"]
[Round "09"]
[TimeControl "180+2"]
[Date "2023.05.31"]
[WhiteClock "0:00:05"]
[BlackClock "0:00:03"]

1. e4 {[%clk 0:03:00]}  d6 {[%clk 0:02:57]} 2. d4 {[%clk 0:03:00]}  g6 {[%clk 0:02:57]} 3. Nc3 {[%clk 0:02:57]}  Bg7 {[%clk 0:02:57]} 4. h4 {[%clk 0:02:57]}  h5 {[%clk 0:02:57]} 5. Be3 {[%clk 0:02:51]}  a6 {[%clk 0:02:56]} 6. Qd2 {[%clk 0:02:50]}  b5 {[%clk 0:02:56]} 7. Bd3 {[%clk 0:02:49]}  Bb7 {[%clk 0:02:55]} 8. f4 {[%clk 0:02:43]}  Nd7 {[%clk 0:02:55]} 9. Nf3 {[%clk 0:02:40]}  Ngf6 {[%clk 0:02:46]} 10. e5 {[%clk 0:02:27]}  b4 {[%clk 0:02:41]} 11. Ne2 {[%clk 0:02:05]}  Ne4 {[%clk 0:02:32]} 12. Qxb4 {[%clk 0:01:56]}  Rb8 {[%clk 0:02:31]} 13. Qa5 {[%clk 0:01:43]}  O-O {[%clk 0:02:28]} 14. O-O-O {[%clk 0:01:40]}  Nb6 {[%clk 0:02:22]} 15. g4 {[%clk 0:01:26]}  hxg4 {[%clk 0:02:21]} 16. Ng5 {[%clk 0:01:21]}  Nxg5 {[%clk 0:02:21]} 17. hxg5 {[%clk 0:01:22]}  Bxh1 {[%clk 0:02:21]} 18. Rxh1 {[%clk 0:01:23]}  e6 {[%clk 0:02:15]} 19. Ng3 {[%clk 0:01:08]}  d5 {[%clk 0:02:06]} 20. Qd2 {[%clk 0:01:06]}  Re8 {[%clk 0:02:04]} 21. Qh2 {[%clk 0:01:04]}  Nc4 {[%clk 0:01:58]} 22. Bxc4 {[%clk 0:00:46]}  dxc4 {[%clk 0:01:58]} 23. Qh7+ {[%clk 0:00:46]}  Kf8 {[%clk 0:01:58]} 24. Ne4 {[%clk 0:00:31]}  Qd5 {[%clk 0:01:58]} 25. Nf6 {[%clk 0:00:30]}  Qf3 {[%clk 0:01:52]} 26. Re1 {[%clk 0:00:25]}  c3 {[%clk 0:01:17]} 27. bxc3 {[%clk 0:00:22]}  Qc6 {[%clk 0:00:49]} 28. d5 {[%clk 0:00:20]}  exd5 {[%clk 0:00:33]} 29. Bc5+ {[%clk 0:00:20]}  Qxc5 {[%clk 0:00:30]} 30. Nd7+ {[%clk 0:00:20]}  Ke7 {[%clk 0:00:30]} 31. Nxc5 {[%clk 0:00:21]}  Bh8 {[%clk 0:00:20]} 32. e6 {[%clk 0:00:18]}  Kd6 {[%clk 0:00:20]} 33. Nb3 {[%clk 0:00:12]}  Bxc3 {[%clk 0:00:19]} 34. Rd1 {[%clk 0:00:11]}  Rxe6 {[%clk 0:00:18]} 35. Qxf7 {[%clk 0:00:10]}  g3 {[%clk 0:00:19]} 36. f5 {[%clk 0:00:09]}  gxf5 {[%clk 0:00:19]} 37. Qxf5 {[%clk 0:00:09]}  c6 {[%clk 0:00:19]} 38. g6 {[%clk 0:00:08]}  g2 {[%clk 0:00:17]} 39. Qg4 {[%clk 0:00:08]}  Rg8 {[%clk 0:00:13]} 40. Qxg2 {[%clk 0:00:08]}  Rgxg6 {[%clk 0:00:13]} 41. Qh2+ {[%clk 0:00:08]}  Be5 {[%clk 0:00:13]} 42. Qf2 {[%clk 0:00:09]}  Rg3 {[%clk 0:00:10]} 43. Qc5+ {[%clk 0:00:08]}  Kd7 {[%clk 0:00:10]} 44. Qa7+ {[%clk 0:00:08]}  Kd6 {[%clk 0:00:09]} 45. Nc5 {[%clk 0:00:08]}  Re7 {[%clk 0:00:09]} 46. Qb8+ {[%clk 0:00:06]}  Kxc5 {[%clk 0:00:08]} 47. Qf8 {[%clk 0:00:05]}  Bd6 {[%clk 0:00:06]} 48. Qf2+ {[%clk 0:00:05]}  Kb5 {[%clk 0:00:06]} 49. Qf1+ {[%clk 0:00:04]}  Kb6 {[%clk 0:00:06]} 50. Qf2+ {[%clk 0:00:04]}  Kb7 {[%clk 0:00:06]} 51. Re1 {[%clk 0:00:03]}  Rxe1+ {[%clk 0:00:05]} 52. Qxe1 {[%clk 0:00:04]}  Rg7 {[%clk 0:00:04]} 53. Qe6 {[%clk 0:00:04]}  Kc7 {[%clk 0:00:04]} 54. c4 {[%clk 0:00:04]}  Re7 {[%clk 0:00:04]} 55. Qg4 {[%clk 0:00:04]}  dxc4 {[%clk 0:00:04]} 56. Qxc4 {[%clk 0:00:04]}  a5 {[%clk 0:00:04]} 57. Qa6 {[%clk 0:00:04]}  Bb4 {[%clk 0:00:03]} 58. Qa7+ {[%clk 0:00:05]}  Kd6 {[%clk 0:00:03]} 59. Qd4+ {[%clk 0:00:05]}  Kc7 {[%clk 0:00:04]} 60. Qa7+ {[%clk 0:00:05]}  Kd6 {[%clk 0:00:04]} 61. Qd4+ {[%clk 0:00:05]}  Ke6 {[%clk 0:00:05]} 62. Kc2 {[%clk 0:00:05]}  Rd7 {[%clk 0:00:05]} 63. Qg4+ {[%clk 0:00:05]}  Kd6 {[%clk 0:00:05]} 64. Qf4+ {[%clk 0:00:06]}  Kc5 {[%clk 0:00:05]} 65. Qf2+ {[%clk 0:00:05]}  Kb5 {[%clk 0:00:05]} 66. Qf1+ {[%clk 0:00:05]}  Kb6 {[%clk 0:00:05]} 67. a4 {[%clk 0:00:05]}  Bc5 {[%clk 0:00:04]} 68. Qb1+ {[%clk 0:00:05]}  Kc7 {[%clk 0:00:04]} 69. Kc3 {[%clk 0:00:05]}  Rd4 {[%clk 0:00:03]} 70. Qh7+ {[%clk 0:00:04]}  Kb6 {[%clk 0:00:04]} 71. Qc2 {[%clk 0:00:04]}  Rb4 {[%clk 0:00:03]} 72. Qd1 {[%clk 0:00:04]}  Bd4+ {[%clk 0:00:03]} 73. Kd3 {[%clk 0:00:03]}  Bc5 {[%clk 0:00:03]} 74. Ke2 {[%clk 0:00:04]}  Re4+ {[%clk 0:00:03]} 75. Kf3 {[%clk 0:00:04]}  Rb4 {[%clk 0:00:03]} 76. Qc2 {[%clk 0:00:04]}  Bd4 {[%clk 0:00:04]} 77. Ke2 {[%clk 0:00:04]}  Bc5 {[%clk 0:00:02]} 78. Kd3 {[%clk 0:00:04]}  Rd4+ {[%clk 0:00:03]} 79. Kc3 {[%clk 0:00:03]}  Rd5 {[%clk 0:00:03]} 80. Qb3+ {[%clk 0:00:03]}  Bb4+ {[%clk 0:00:03]} 81. Kc2 {[%clk 0:00:03]}  Rc5+ {[%clk 0:00:04]} 82. Kb1 {[%clk 0:00:03]}  Rc3 {[%clk 0:00:04]} 83. Qe6 {[%clk 0:00:03]}  Rc5 {[%clk 0:00:02]} 84. Qe3 {[%clk 0:00:04]}  Kb7 {[%clk 0:00:02]} 85. Qe7+ {[%clk 0:00:04]}  Ka6 {[%clk 0:00:02]} 86. Qe2+ {[%clk 0:00:04]}  Kb6 {[%clk 0:00:02]} 87. Qe3 {[%clk 0:00:05]}  Bc3 {[%clk 0:00:02]} 88. Ka2 {[%clk 0:00:04]}  Bb4 {[%clk 0:00:02]} 89. Kb3 {[%clk 0:00:04]}  Kb7 {[%clk 0:00:02]} 90. Kb2 {[%clk 0:00:05]}  Rd5 {[%clk 0:00:02]} 91. Qe4 {[%clk 0:00:04]}  Bc5 {[%clk 0:00:02]} 92. Qh7+ {[%clk 0:00:03]}  Kb6 {[%clk 0:00:02]} 93. Qe4 {[%clk 0:00:03]}  Rd4 {[%clk 0:00:02]} 94. Qe6 {[%clk 0:00:03]}  Rxa4 {[%clk 0:00:02]} 95. Kc2 {[%clk 0:00:03]}  Rb4 {[%clk 0:00:02]} 96. Qa2 {[%clk 0:00:03]}  a4 {[%clk 0:00:02]} 97. Qe6 {[%clk 0:00:04]}  a3 {[%clk 0:00:03]} 98. Qc8 {[%clk 0:00:04]}  Rb2+ {[%clk 0:00:02]} 99. Kc3 {[%clk 0:00:04]}  Rb5 {[%clk 0:00:02]} 100. Qb8+ {[%clk 0:00:04]}  Ka6 {[%clk 0:00:02]} 101. Qa8+ {[%clk 0:00:04]}  Kb6 {[%clk 0:00:02]} 102. Qb8+ {[%clk 0:00:04]}  Ka6 {[%clk 0:00:03]} 103. Qa8+ {[%clk 0:00:05]}  Ba7 {[%clk 0:00:03]} 104. Qxc6+ {[%clk 0:00:05]}  Ka5 {[%clk 0:00:04]} 105. Qc7+ {[%clk 0:00:05]}  Bb6 {[%clk 0:00:04]} 106. Qb7 {[%clk 0:00:05]}  Bd4+ {[%clk 0:00:03]} 0-1


[Site "https://www.chess.com"]

[Event "Titled Tuesday Blitz May 30 Late 2023"]
[White "Martinez Ramirez, Lennis"]
[Black "Prem, Pranav"]
[WhiteFideId "3509079"]
[BlackFideId "30901057"]
[WhiteElo "2410"]
[BlackElo "1970"]
[Result "1-0"]
[Round "09"]
[TimeControl "180+2"]
[Date "2023.05.31"]
[WhiteClock "0:00:38"]
[BlackClock "0:00:01"]

1. Nf3 {[%clk 0:02:57]}  d5 {[%clk 0:02:58]} 2. c4 {[%clk 0:02:56]}  e6 {[%clk 0:02:56]} 3. b3 {[%clk 0:02:57]}  Nf6 {[%clk 0:02:53]} 4. Bb2 {[%clk 0:02:57]}  c5 {[%clk 0:02:51]} 5. e3 {[%clk 0:02:56]}  Nc6 {[%clk 0:02:38]} 6. cxd5 {[%clk 0:02:56]}  exd5 {[%clk 0:02:36]} 7. Bb5 {[%clk 0:02:50]}  Bd7 {[%clk 0:02:33]} 8. O-O {[%clk 0:02:48]}  Bd6 {[%clk 0:02:28]} 9. h3 {[%clk 0:02:46]}  O-O {[%clk 0:02:28]} 10. d4 {[%clk 0:02:46]}  a6 {[%clk 0:02:20]} 11. dxc5 {[%clk 0:02:45]}  Bxc5 {[%clk 0:02:19]} 12. Bd3 {[%clk 0:02:32]}  Re8 {[%clk 0:01:56]} 13. a3 {[%clk 0:02:31]}  Ne4 {[%clk 0:01:31]} 14. Nc3 {[%clk 0:02:24]}  Bf5 {[%clk 0:01:13]} 15. Rc1 {[%clk 0:02:13]}  Ba7 {[%clk 0:01:05]} 16. Ne2 {[%clk 0:02:08]}  Bg6 {[%clk 0:00:44]} 17. Ned4 {[%clk 0:02:07]}  Qd7 {[%clk 0:00:43]} 18. Nxc6 {[%clk 0:02:06]}  bxc6 {[%clk 0:00:43]} 19. Ne5 {[%clk 0:02:06]}  Qb7 {[%clk 0:00:30]} 20. b4 {[%clk 0:01:49]}  c5 {[%clk 0:00:22]} 21. Nxg6 {[%clk 0:01:42]}  hxg6 {[%clk 0:00:22]} 22. Ba1 {[%clk 0:01:19]}  cxb4 {[%clk 0:00:21]} 23. axb4 {[%clk 0:01:19]}  Qxb4 {[%clk 0:00:20]} 24. Bxe4 {[%clk 0:01:16]}  dxe4 {[%clk 0:00:21]} 25. Rc7 {[%clk 0:01:14]}  Rad8 {[%clk 0:00:18]} 26. Qc1 {[%clk 0:01:08]}  Bb6 {[%clk 0:00:18]} 27. Rb7 {[%clk 0:01:06]}  Rb8 {[%clk 0:00:11]} 28. Rd7 {[%clk 0:00:56]}  Rbd8 {[%clk 0:00:11]} 29. Rfd1 {[%clk 0:00:55]}  Rxd7 {[%clk 0:00:09]} 30. Rxd7 {[%clk 0:00:56]}  Rd8 {[%clk 0:00:07]} 31. Rb7 {[%clk 0:00:51]}  Qd6 {[%clk 0:00:05]} 32. Qb2 {[%clk 0:00:45]}  f6 {[%clk 0:00:01]} 33. Rxb6 {[%clk 0:00:43]}  Qd1+ {[%clk 0:00:02]} 34. Kh2 {[%clk 0:00:43]}  Qd3 {[%clk 0:00:03]} 35. Qb3+ {[%clk 0:00:42]}  Qxb3 {[%clk 0:00:03]} 36. Rxb3 {[%clk 0:00:43]}  Rd1 {[%clk 0:00:02]} 37. Bd4 {[%clk 0:00:40]}  Rd2 {[%clk 0:00:02]} 38. Kg3 {[%clk 0:00:39]}  Ra2 {[%clk 0:00:03]} 39. h4 {[%clk 0:00:38]}  a5 {[%clk 0:00:02]} 40. Rb7 {[%clk 0:00:38]}  a4 {[%clk 0:00:02]} 41. Ra7 {[%clk 0:00:38]}  Kh7 {[%clk 0:00:01]} 42. Bc5 {[%clk 0:00:38]}  Kh6 {[%clk 0:00:01]} 43. Bf8 {[%clk 0:00:38]} 1-0


[Site "https://www.chess.com"]

[Event "Titled Tuesday Blitz May 30 Late 2023"]
[White "SergioMoralesG"]
[Black "Goryachkina, Aleksandra"]
[BlackFideId "4147103"]
[WhiteElo "2540"]
[BlackElo "2471"]
[Result "0-1"]
[Round "09"]
[TimeControl "180+2"]
[Date "2023.05.31"]
[WhiteClock "0:00:01"]
[BlackClock "0:00:03"]

1. e4 {[%clk 0:03:00]}  c6 {[%clk 0:02:58]} 2. Nf3 {[%clk 0:02:59]}  d5 {[%clk 0:02:57]} 3. d3 {[%clk 0:03:00]}  g6 {[%clk 0:02:55]} 4. Be2 {[%clk 0:02:56]}  Bg7 {[%clk 0:02:55]} 5. c3 {[%clk 0:02:55]}  e5 {[%clk 0:02:52]} 6. O-O {[%clk 0:02:54]}  Ne7 {[%clk 0:02:52]} 7. Re1 {[%clk 0:02:52]}  O-O {[%clk 0:02:52]} 8. Nbd2 {[%clk 0:02:49]}  h6 {[%clk 0:02:46]} 9. d4 {[%clk 0:02:44]}  exd4 {[%clk 0:02:43]} 10. cxd4 {[%clk 0:02:41]}  dxe4 {[%clk 0:02:43]} 11. Nxe4 {[%clk 0:02:41]}  Bf5 {[%clk 0:02:42]} 12. Bc4 {[%clk 0:02:36]}  Bxe4 {[%clk 0:02:38]} 13. Rxe4 {[%clk 0:02:35]}  Nd7 {[%clk 0:02:38]} 14. Bf4 {[%clk 0:02:28]}  Nd5 {[%clk 0:02:27]} 15. Bxd5 {[%clk 0:02:18]}  cxd5 {[%clk 0:02:27]} 16. Re2 {[%clk 0:02:18]}  Qb6 {[%clk 0:02:14]} 17. Qa4 {[%clk 0:02:14]}  Nf6 {[%clk 0:02:09]} 18. Rc1 {[%clk 0:02:13]}  Rac8 {[%clk 0:02:07]} 19. Rec2 {[%clk 0:02:08]}  Rxc2 {[%clk 0:01:55]} 20. Rxc2 {[%clk 0:02:08]}  a6 {[%clk 0:01:54]} 21. h3 {[%clk 0:02:05]}  Ne4 {[%clk 0:01:50]} 22. Be5 {[%clk 0:01:57]}  Qe6 {[%clk 0:01:38]} 23. Bxg7 {[%clk 0:01:52]}  Kxg7 {[%clk 0:01:39]} 24. Rc7 {[%clk 0:01:48]}  Rc8 {[%clk 0:01:27]} 25. Qd7 {[%clk 0:01:37]}  Rxc7 {[%clk 0:01:07]} 26. Qxc7 {[%clk 0:01:37]}  b5 {[%clk 0:01:07]} 27. Ne5 {[%clk 0:01:34]}  Qf6 {[%clk 0:01:00]} 28. f3 {[%clk 0:01:31]}  Nd2 {[%clk 0:00:58]} 29. Qc3 {[%clk 0:00:56]}  Nc4 {[%clk 0:00:52]} 30. b3 {[%clk 0:00:52]}  Nxe5 {[%clk 0:00:52]} 31. dxe5 {[%clk 0:00:53]}  Qb6+ {[%clk 0:00:53]} 32. Kf1 {[%clk 0:00:51]}  d4 {[%clk 0:00:53]} 33. Qd3 {[%clk 0:00:49]}  Qc5 {[%clk 0:00:53]} 34. Qe4 {[%clk 0:00:47]}  Qc1+ {[%clk 0:00:50]} 35. Kf2 {[%clk 0:00:41]}  Qd2+ {[%clk 0:00:49]} 36. Qe2 {[%clk 0:00:40]}  Qc3 {[%clk 0:00:45]} 37. e6 {[%clk 0:00:36]}  d3 {[%clk 0:00:44]} 38. e7 {[%clk 0:00:24]}  dxe2 {[%clk 0:00:43]} 39. e8=Q {[%clk 0:00:24]}  Qd4+ {[%clk 0:00:41]} 40. Kxe2 {[%clk 0:00:21]}  Qb2+ {[%clk 0:00:41]} 41. Kd3 {[%clk 0:00:18]}  Qxa2 {[%clk 0:00:41]} 42. Qe5+ {[%clk 0:00:18]}  Kh7 {[%clk 0:00:41]} 43. Qd5 {[%clk 0:00:16]}  Qb1+ {[%clk 0:00:41]} 44. Kc3 {[%clk 0:00:15]}  Qe1+ {[%clk 0:00:39]} 45. Kc2 {[%clk 0:00:08]}  Qe7 {[%clk 0:00:29]} 46. Kc3 {[%clk 0:00:08]}  Kg7 {[%clk 0:00:21]} 47. b4 {[%clk 0:00:07]}  Qc7+ {[%clk 0:00:19]} 48. Kb3 {[%clk 0:00:06]}  Qf4 {[%clk 0:00:19]} 49. Qc6 {[%clk 0:00:04]}  Qe3+ {[%clk 0:00:18]} 50. Qc3+ {[%clk 0:00:01]}  Qxc3+ {[%clk 0:00:12]} 51. Kxc3 {[%clk 0:00:02]}  Kf6 {[%clk 0:00:11]} 52. Kd4 {[%clk 0:00:03]}  Ke6 {[%clk 0:00:04]} 53. Kc5 {[%clk 0:00:03]}  Ke5 {[%clk 0:00:04]} 54. Kb6 {[%clk 0:00:04]}  Kd4 {[%clk 0:00:05]} 55. Kxa6 {[%clk 0:00:04]}  Kc4 {[%clk 0:00:05]} 56. Ka5 {[%clk 0:00:04]}  g5 {[%clk 0:00:04]} 57. g3 {[%clk 0:00:02]}  f6 {[%clk 0:00:01]} 58. f4 {[%clk 0:00:02]}  gxf4 {[%clk 0:00:01]} 59. gxf4 {[%clk 0:00:02]}  f5 {[%clk 0:00:01]} 60. h4 {[%clk 0:00:01]}  h5 {[%clk 0:00:02]} 61. Kb6 {[%clk 0:00:01]}  Kxb4 {[%clk 0:00:02]} 62. Kc6 {[%clk 0:00:01]}  Kc4 {[%clk 0:00:03]} 0-1


[Site "https://www.chess.com"]

[Event "Titled Tuesday Blitz May 30 Late 2023"]
[White "Arabidze, Meri"]
[Black "Goncalves, Davi Sulzbacher"]
[WhiteFideId "13604040"]
[BlackFideId "2154510"]
[WhiteElo "2405"]
[BlackElo "2182"]
[Result "0-1"]
[Round "09"]
[TimeControl "180+2"]
[Date "2023.05.31"]
[WhiteClock "0:00:04"]
[BlackClock "0:00:04"]

1. d4 {[%clk 0:03:00]}  Nf6 {[%clk 0:02:58]} 2. c4 {[%clk 0:03:01]}  g6 {[%clk 0:02:58]} 3. Nf3 {[%clk 0:03:02]}  Bg7 {[%clk 0:02:58]} 4. g3 {[%clk 0:03:02]}  O-O {[%clk 0:02:58]} 5. Bg2 {[%clk 0:03:03]}  c6 {[%clk 0:02:58]} 6. O-O {[%clk 0:03:03]}  d5 {[%clk 0:02:58]} 7. Nbd2 {[%clk 0:02:58]}  Bf5 {[%clk 0:02:54]} 8. b3 {[%clk 0:02:58]}  a5 {[%clk 0:02:52]} 9. a3 {[%clk 0:02:58]}  Nbd7 {[%clk 0:02:50]} 10. Bb2 {[%clk 0:02:57]}  Qb6 {[%clk 0:02:46]} 11. Nh4 {[%clk 0:02:45]}  Be6 {[%clk 0:02:28]} 12. c5 {[%clk 0:02:45]}  Qc7 {[%clk 0:02:06]} 13. f4 {[%clk 0:02:44]}  Ng4 {[%clk 0:01:57]} 14. Qc1 {[%clk 0:02:17]}  Ne3 {[%clk 0:01:53]} 15. Rf2 {[%clk 0:02:13]}  Nxg2 {[%clk 0:01:51]} 16. Kxg2 {[%clk 0:02:13]}  f5 {[%clk 0:01:35]} 17. Nhf3 {[%clk 0:02:11]}  Nf6 {[%clk 0:01:26]} 18. Ne5 {[%clk 0:02:11]}  Ne4 {[%clk 0:01:19]} 19. Rf1 {[%clk 0:02:07]}  Rfc8 {[%clk 0:01:07]} 20. Qc2 {[%clk 0:02:00]}  b6 {[%clk 0:01:04]} 21. b4 {[%clk 0:01:56]}  Bxe5 {[%clk 0:00:58]} 22. fxe5 {[%clk 0:01:50]}  axb4 {[%clk 0:00:55]} 23. axb4 {[%clk 0:01:50]}  Qb7 {[%clk 0:00:50]} 24. Bc3 {[%clk 0:01:39]}  Ra6 {[%clk 0:00:46]} 25. Nb3 {[%clk 0:01:08]}  Rca8 {[%clk 0:00:42]} 26. cxb6 {[%clk 0:01:08]}  Qxb6 {[%clk 0:00:30]} 27. Na5 {[%clk 0:01:01]}  Qb5 {[%clk 0:00:26]} 28. Be1 {[%clk 0:00:46]}  Kg7 {[%clk 0:00:14]} 29. Rf3 {[%clk 0:00:45]}  g5 {[%clk 0:00:12]} 30. Qd3 {[%clk 0:00:34]}  Qb6 {[%clk 0:00:07]} 31. Rf1 {[%clk 0:00:29]}  h5 {[%clk 0:00:06]} 32. Bd2 {[%clk 0:00:27]}  Kg6 {[%clk 0:00:06]} 33. Rfc1 {[%clk 0:00:24]}  h4 {[%clk 0:00:02]} 34. Rxc6 {[%clk 0:00:20]}  Qxc6 {[%clk 0:00:01]} 35. Nxc6 {[%clk 0:00:21]}  Rxa1 {[%clk 0:00:01]} 36. Nxe7+ {[%clk 0:00:20]}  Kf7 {[%clk 0:00:02]} 37. Nc6 {[%clk 0:00:18]}  R8a2 {[%clk 0:00:02]} 38. Bxg5 {[%clk 0:00:15]}  Re1 {[%clk 0:00:03]} 39. Kh3 {[%clk 0:00:05]}  Nf2+ {[%clk 0:00:02]} 40. Kxh4 {[%clk 0:00:05]}  Nxd3 {[%clk 0:00:02]} 41. Bf4 {[%clk 0:00:04]}  Nxf4 {[%clk 0:00:02]} 42. gxf4 {[%clk 0:00:04]}  Rexe2 {[%clk 0:00:03]} 43. h3 {[%clk 0:00:05]}  Rg2 {[%clk 0:00:03]} 44. b5 {[%clk 0:00:04]}  Ra8 {[%clk 0:00:04]} 45. b6 {[%clk 0:00:04]}  Rh8# {[%clk 0:00:04]} 0-1


[Site "https://www.chess.com"]